[Event "Titled Tuesday Blitz February 07 Early 2023"]
[White "Kvaloy, Aksel Bu"]
[Black "Fier, Alexandr"]
[WhiteFideId "1528815"]
[BlackFideId "2107139"]
[WhiteElo "2321"]
[BlackElo "2589"]
[Result "0-1"]
[Round "07"]
[TimeControl "180+2"]
[Date "2023.02.07"]
[WhiteClock "0:00:04"]
[BlackClock "0:01:40"]

1. d4 {[%clk 0:03:00]}  Nf6 {[%clk 0:03:00]} 2. c4 {[%clk 0:03:00]}  c5 {[%clk 0:03:01]} 3. d5 {[%clk 0:03:00]}  e6 {[%clk 0:03:02]} 4. Nc3 {[%clk 0:02:59]}  exd5 {[%clk 0:03:03]} 5. cxd5 {[%clk 0:03:00]}  d6 {[%clk 0:03:04]} 6. Nf3 {[%clk 0:03:00]}  g6 {[%clk 0:03:05]} 7. g3 {[%clk 0:03:01]}  Bg7 {[%clk 0:03:05]} 8. Bg2 {[%clk 0:03:01]}  O-O {[%clk 0:03:06]} 9. O-O {[%clk 0:03:02]}  Re8 {[%clk 0:03:07]} 10. h3 {[%clk 0:03:00]}  Ne4 {[%clk 0:03:05]} 11. Nxe4 {[%clk 0:02:58]}  Rxe4 {[%clk 0:03:06]} 12. Nd2 {[%clk 0:02:56]}  Rb4 {[%clk 0:03:05]} 13. Qc2 {[%clk 0:02:52]}  Nd7 {[%clk 0:02:58]} 14. a3 {[%clk 0:02:50]}  Rb6 {[%clk 0:02:51]} 15. Nc4 {[%clk 0:02:49]}  Ra6 {[%clk 0:02:51]} 16. Bf4 {[%clk 0:02:47]}  Nf6 {[%clk 0:02:44]} 17. e4 {[%clk 0:02:38]}  b5 {[%clk 0:02:44]} 18. Nxd6 {[%clk 0:02:19]}  Nh5 {[%clk 0:02:36]} 19. e5 {[%clk 0:01:46]}  Nxf4 {[%clk 0:02:36]} 20. gxf4 {[%clk 0:01:46]}  Rxd6 {[%clk 0:02:36]} 21. exd6 {[%clk 0:01:45]}  Qxd6 {[%clk 0:02:37]} 22. Rac1 {[%clk 0:01:39]}  c4 {[%clk 0:02:37]} 23. a4 {[%clk 0:01:35]}  a6 {[%clk 0:02:35]} 24. Qe2 {[%clk 0:01:06]}  Bd7 {[%clk 0:02:17]} 25. Rfe1 {[%clk 0:01:03]}  Qxf4 {[%clk 0:02:04]} 26. d6 {[%clk 0:01:02]}  Rf8 {[%clk 0:02:00]} 27. Qe7 {[%clk 0:00:53]}  Bxb2 {[%clk 0:01:58]} 28. Rcd1 {[%clk 0:00:40]}  c3 {[%clk 0:01:44]} 29. Qxd7 {[%clk 0:00:32]}  c2 {[%clk 0:01:44]} 30. Qg4 {[%clk 0:00:31]}  cxd1=Q {[%clk 0:01:44]} 31. Rxd1 {[%clk 0:00:29]}  Qxg4 {[%clk 0:01:42]} 32. hxg4 {[%clk 0:00:30]}  bxa4 {[%clk 0:01:40]} 33. d7 {[%clk 0:00:18]}  Rd8 {[%clk 0:01:39]} 34. Bc6 {[%clk 0:00:11]}  a3 {[%clk 0:01:40]} 35. Re1 {[%clk 0:00:09]}  a2 {[%clk 0:01:36]} 36. Re8+ {[%clk 0:00:08]}  Kg7 {[%clk 0:01:37]} 37. Rxd8 {[%clk 0:00:07]}  a1=Q+ {[%clk 0:01:37]} 38. Kg2 {[%clk 0:00:08]}  Bf6 {[%clk 0:01:38]} 39. Re8 {[%clk 0:00:06]}  Qd4 {[%clk 0:01:38]} 40. Ra8 {[%clk 0:00:05]}  Qxg4+ {[%clk 0:01:38]} 41. Kf1 {[%clk 0:00:05]}  Qc4+ {[%clk 0:01:39]} 42. Kg2 {[%clk 0:00:04]}  Qxc6+ {[%clk 0:01:40]} 0-1


[Site "https://www.chess.com"]

[Event "Titled Tuesday Blitz February 07 Early 2023"]
[White "Rakhmatullaev, Almas"]
[Black "Korchmar, Vasiliy"]
[WhiteFideId "14205793"]
[BlackFideId "24131750"]
[WhiteElo "2275"]
[BlackElo "2438"]
[Result "1-0"]
[Round "07"]
[TimeControl "180+2"]
[Date "2023.02.07"]
[WhiteClock "0:00:20"]
[BlackClock "0:00:02"]

1. e4 {[%clk 0:03:00]}  c5 {[%clk 0:02:56]} 2. c3 {[%clk 0:03:01]}  Nf6 {[%clk 0:02:52]} 3. e5 {[%clk 0:03:01]}  Nd5 {[%clk 0:02:52]} 4. d4 {[%clk 0:03:01]}  cxd4 {[%clk 0:02:50]} 5. Qxd4 {[%clk 0:03:02]}  e6 {[%clk 0:02:49]} 6. Nf3 {[%clk 0:03:02]}  Nc6 {[%clk 0:02:49]} 7. Qe4 {[%clk 0:03:03]}  f5 {[%clk 0:02:49]} 8. Qe2 {[%clk 0:03:03]}  b5 {[%clk 0:02:50]} 9. Qd1 {[%clk 0:03:02]}  Rb8 {[%clk 0:02:38]} 10. Bd3 {[%clk 0:03:02]}  Be7 {[%clk 0:02:32]} 11. Bxf5 {[%clk 0:03:01]}  Nxc3 {[%clk 0:02:13]} 12. Nxc3 {[%clk 0:02:55]}  exf5 {[%clk 0:02:14]} 13. O-O {[%clk 0:02:53]}  O-O {[%clk 0:01:58]} 14. Re1 {[%clk 0:02:51]}  Kh8 {[%clk 0:01:47]} 15. Bf4 {[%clk 0:02:45]}  g5 {[%clk 0:01:34]} 16. Be3 {[%clk 0:02:38]}  f4 {[%clk 0:01:16]} 17. Bd4 {[%clk 0:02:35]}  g4 {[%clk 0:01:08]} 18. e6+ {[%clk 0:02:28]}  Nxd4 {[%clk 0:01:07]} 19. Qxd4+ {[%clk 0:02:23]}  Bf6 {[%clk 0:01:05]} 20. e7 {[%clk 0:02:22]}  Qxe7 {[%clk 0:01:04]} 21. Rxe7 {[%clk 0:02:19]}  Bxd4 {[%clk 0:01:03]} 22. Nxd4 {[%clk 0:02:20]}  b4 {[%clk 0:00:55]} 23. Ne4 {[%clk 0:02:15]}  Bb7 {[%clk 0:00:55]} 24. Ng5 {[%clk 0:02:01]}  h6 {[%clk 0:00:46]} 25. Nf7+ {[%clk 0:01:57]}  Kg7 {[%clk 0:00:46]} 26. Nd6+ {[%clk 0:01:54]}  Kf6 {[%clk 0:00:44]} 27. Rxd7 {[%clk 0:01:44]}  Rbd8 {[%clk 0:00:45]} 28. Rxb7 {[%clk 0:01:09]}  Rxd6 {[%clk 0:00:44]} 29. Nb3 {[%clk 0:01:08]}  Rfd8 {[%clk 0:00:41]} 30. Rf1 {[%clk 0:01:07]}  Rd1 {[%clk 0:00:32]} 31. Rxb4 {[%clk 0:01:03]}  Kg5 {[%clk 0:00:26]} 32. f3 {[%clk 0:00:52]}  h5 {[%clk 0:00:21]} 33. Re4 {[%clk 0:00:43]}  R8d3 {[%clk 0:00:14]} 34. fxg4 {[%clk 0:00:32]}  Rxf1+ {[%clk 0:00:07]} 35. Kxf1 {[%clk 0:00:33]}  hxg4 {[%clk 0:00:08]} 36. Ke2 {[%clk 0:00:33]}  Rd7 {[%clk 0:00:06]} 37. Nd4 {[%clk 0:00:29]}  Rh7 {[%clk 0:00:05]} 38. h3 {[%clk 0:00:26]}  gxh3 {[%clk 0:00:05]} 39. Nf3+ {[%clk 0:00:21]}  Kg4 {[%clk 0:00:03]} 40. gxh3+ {[%clk 0:00:21]}  Rxh3 {[%clk 0:00:03]} 41. Nd2 {[%clk 0:00:20]}  Rh2+ {[%clk 0:00:03]} 42. Kd3 {[%clk 0:00:20]}  Kg3 {[%clk 0:00:02]} 43. Nf1+ {[%clk 0:00:20]} 1-0


[Site "https://www.chess.com"]

[Event "Titled Tuesday Blitz February 07 Early 2023"]
[White "Maximov, Dmitry"]
[Black "Yaran, Siar"]
[WhiteFideId "14105659"]
[BlackFideId "6323006"]
[WhiteElo "2497"]
[BlackElo "2288"]
[Result "1-0"]
[Round "07"]
[TimeControl "180+2"]
[Date "2023.02.07"]
[WhiteClock "0:00:04"]
[BlackClock "0:00:01"]

1. e4 {[%clk 0:03:00]}  e5 {[%clk 0:02:56]} 2. Nf3 {[%clk 0:03:00]}  Nc6 {[%clk 0:02:57]} 3. Bb5 {[%clk 0:03:01]}  a6 {[%clk 0:02:57]} 4. Ba4 {[%clk 0:03:01]}  Nf6 {[%clk 0:02:57]} 5. O-O {[%clk 0:03:01]}  Be7 {[%clk 0:02:58]} 6. Re1 {[%clk 0:03:01]}  b5 {[%clk 0:02:58]} 7. Bb3 {[%clk 0:03:01]}  O-O {[%clk 0:02:59]} 8. h3 {[%clk 0:03:01]}  Na5 {[%clk 0:02:53]} 9. Nxe5 {[%clk 0:02:58]}  Nxb3 {[%clk 0:02:52]} 10. axb3 {[%clk 0:02:58]}  Bb7 {[%clk 0:02:53]} 11. d3 {[%clk 0:02:56]}  d5 {[%clk 0:02:54]} 12. exd5 {[%clk 0:02:55]}  Qxd5 {[%clk 0:02:53]} 13. Nf3 {[%clk 0:02:52]}  Rfe8 {[%clk 0:02:47]} 14. Be3 {[%clk 0:02:38]}  c5 {[%clk 0:02:29]} 15. Nbd2 {[%clk 0:02:37]}  Rad8 {[%clk 0:02:28]} 16. Bf4 {[%clk 0:02:29]}  Qf5 {[%clk 0:01:44]} 17. Bg3 {[%clk 0:02:26]}  Bf8 {[%clk 0:01:42]} 18. Re5 {[%clk 0:02:10]}  Rxe5 {[%clk 0:01:37]} 19. Bxe5 {[%clk 0:02:07]}  Re8 {[%clk 0:01:22]} 20. Bh2 {[%clk 0:01:57]}  g6 {[%clk 0:01:10]} 21. Qf1 {[%clk 0:01:53]}  Bg7 {[%clk 0:00:45]} 22. Re1 {[%clk 0:01:52]}  Qc8 {[%clk 0:00:40]} 23. Be5 {[%clk 0:01:49]}  Re6 {[%clk 0:00:39]} 24. Ng5 {[%clk 0:01:42]}  Re7 {[%clk 0:00:25]} 25. Ndf3 {[%clk 0:01:31]}  Qe8 {[%clk 0:00:22]} 26. Bd6 {[%clk 0:01:24]}  Rxe1 {[%clk 0:00:21]} 27. Qxe1 {[%clk 0:01:23]}  Qxe1+ {[%clk 0:00:20]} 28. Nxe1 {[%clk 0:01:23]}  Nd7 {[%clk 0:00:19]} 29. c3 {[%clk 0:01:12]}  b4 {[%clk 0:00:18]} 30. cxb4 {[%clk 0:01:03]}  cxb4 {[%clk 0:00:18]} 31. Bxb4 {[%clk 0:01:03]}  Bxb2 {[%clk 0:00:16]} 32. Ne4 {[%clk 0:01:00]}  Bd5 {[%clk 0:00:15]} 33. Nd2 {[%clk 0:00:59]}  Bc1 {[%clk 0:00:14]} 34. Nc4 {[%clk 0:00:59]}  Bh6 {[%clk 0:00:09]} 35. Nc2 {[%clk 0:00:58]}  Bg7 {[%clk 0:00:08]} 36. N2e3 {[%clk 0:00:58]}  Be6 {[%clk 0:00:09]} 37. Na5 {[%clk 0:00:50]}  Ne5 {[%clk 0:00:07]} 38. d4 {[%clk 0:00:45]}  Nd3 {[%clk 0:00:07]} 39. Bc3 {[%clk 0:00:44]}  Nc1 {[%clk 0:00:06]} 40. Kf1 {[%clk 0:00:28]}  Nxb3 {[%clk 0:00:06]} 41. Nxb3 {[%clk 0:00:27]}  Bxb3 {[%clk 0:00:07]} 42. Ke2 {[%clk 0:00:28]}  Kf8 {[%clk 0:00:06]} 43. Kd3 {[%clk 0:00:28]}  Ke7 {[%clk 0:00:06]} 44. Bb4+ {[%clk 0:00:27]}  Kd7 {[%clk 0:00:06]} 45. Ke4 {[%clk 0:00:25]}  f5+ {[%clk 0:00:06]} 46. Kd3 {[%clk 0:00:25]}  Kc6 {[%clk 0:00:07]} 47. g4 {[%clk 0:00:23]}  fxg4 {[%clk 0:00:06]} 48. hxg4 {[%clk 0:00:22]}  Kb5 {[%clk 0:00:06]} 49. Be7 {[%clk 0:00:21]}  a5 {[%clk 0:00:06]} 50. f4 {[%clk 0:00:19]}  Kc6 {[%clk 0:00:05]} 51. f5 {[%clk 0:00:19]}  gxf5 {[%clk 0:00:06]} 52. gxf5 {[%clk 0:00:19]}  h5 {[%clk 0:00:06]} 53. f6 {[%clk 0:00:18]}  Bh6 {[%clk 0:00:07]} 54. Nf5 {[%clk 0:00:18]}  Bg5 {[%clk 0:00:06]} 55. f7 {[%clk 0:00:15]}  Bxf7 {[%clk 0:00:06]} 56. Bxg5 {[%clk 0:00:15]}  a4 {[%clk 0:00:07]} 57. Ne3 {[%clk 0:00:14]}  a3 {[%clk 0:00:07]} 58. Nc2 {[%clk 0:00:13]}  a2 {[%clk 0:00:07]} 59. Na1 {[%clk 0:00:14]}  Kd6 {[%clk 0:00:07]} 60. Ke4 {[%clk 0:00:12]}  Bg6+ {[%clk 0:00:07]} 61. Ke3 {[%clk 0:00:11]}  Kd5 {[%clk 0:00:08]} 62. Bf6 {[%clk 0:00:12]}  Bf5 {[%clk 0:00:08]} 63. Kd2 {[%clk 0:00:11]}  Kc4 {[%clk 0:00:07]} 64. Kc1 {[%clk 0:00:09]}  h4 {[%clk 0:00:08]} 65. Bxh4 {[%clk 0:00:09]}  Kxd4 {[%clk 0:00:08]} 66. Kb2 {[%clk 0:00:09]}  Be6 {[%clk 0:00:06]} 67. Bf6+ {[%clk 0:00:09]}  Ke4 {[%clk 0:00:07]} 68. Bc3 {[%clk 0:00:09]}  Kf5 {[%clk 0:00:07]} 69. Ka3 {[%clk 0:00:09]}  Ke4 {[%clk 0:00:08]} 70. Bb2 {[%clk 0:00:09]}  Kd3 {[%clk 0:00:08]} 71. Bh8 {[%clk 0:00:09]}  Bd5 {[%clk 0:00:07]} 72. Kb4 {[%clk 0:00:09]}  Ke2 {[%clk 0:00:06]} 73. Kc3 {[%clk 0:00:09]}  Be6 {[%clk 0:00:05]} 74. Nc2 {[%clk 0:00:08]}  Kd1 {[%clk 0:00:02]} 75. Kb2 {[%clk 0:00:04]}  Kd2 {[%clk 0:00:01]} 76. Nd4 {[%clk 0:00:04]} 1-0


[Site "https://www.chess.com"]

[Event "Titled Tuesday Blitz February 07 Early 2023"]
[White "Karas, Marek"]
[Black "Iniyan, P"]
[WhiteFideId "14928558"]
[BlackFideId "25002767"]
[WhiteElo "2227"]
[BlackElo "2525"]
[Result "0-1"]
[Round "07"]
[TimeControl "180+2"]
[Date "2023.02.07"]
[WhiteClock "0:00:13"]
[BlackClock "0:00:15"]

1. Nf3 {[%clk 0:02:58]}  Nf6 {[%clk 0:02:59]} 2. d4 {[%clk 0:02:58]}  d5 {[%clk 0:03:00]} 3. c4 {[%clk 0:02:55]}  c6 {[%clk 0:03:00]} 4. e3 {[%clk 0:02:53]}  Bg4 {[%clk 0:02:59]} 5. Nc3 {[%clk 0:02:53]}  e6 {[%clk 0:02:58]} 6. Qb3 {[%clk 0:02:50]}  Qb6 {[%clk 0:02:57]} 7. Ne5 {[%clk 0:02:48]}  Bh5 {[%clk 0:02:55]} 8. c5 {[%clk 0:02:42]}  Qc7 {[%clk 0:02:54]} 9. f4 {[%clk 0:02:42]}  b6 {[%clk 0:02:49]} 10. cxb6 {[%clk 0:02:42]}  axb6 {[%clk 0:02:50]} 11. Bd2 {[%clk 0:02:39]}  Bd6 {[%clk 0:02:32]} 12. Bd3 {[%clk 0:02:36]}  O-O {[%clk 0:02:30]} 13. Rc1 {[%clk 0:02:35]}  Qb7 {[%clk 0:02:29]} 14. O-O {[%clk 0:02:32]}  Bg6 {[%clk 0:02:25]} 15. Nxg6 {[%clk 0:02:29]}  hxg6 {[%clk 0:02:25]} 16. Na4 {[%clk 0:02:26]}  Nbd7 {[%clk 0:02:24]} 17. Nc5 {[%clk 0:02:22]}  Bxc5 {[%clk 0:02:15]} 18. dxc5 {[%clk 0:02:17]}  Rfb8 {[%clk 0:02:16]} 19. cxb6 {[%clk 0:02:07]}  Qxb6 {[%clk 0:02:17]} 20. Qxb6 {[%clk 0:01:52]}  Rxb6 {[%clk 0:02:18]} 21. Bc3 {[%clk 0:01:42]}  Rxa2 {[%clk 0:02:15]} 22. Ra1 {[%clk 0:01:42]}  Rxa1 {[%clk 0:02:14]} 23. Rxa1 {[%clk 0:01:43]}  Rb7 {[%clk 0:01:56]} 24. Ra8+ {[%clk 0:01:39]}  Kh7 {[%clk 0:01:56]} 25. h3 {[%clk 0:01:34]}  Nc5 {[%clk 0:01:55]} 26. Bc2 {[%clk 0:01:32]}  Nce4 {[%clk 0:01:55]} 27. Be5 {[%clk 0:01:32]}  Nd2 {[%clk 0:01:24]} 28. Rc8 {[%clk 0:01:24]}  Nc4 {[%clk 0:01:22]} 29. Bd4 {[%clk 0:01:21]}  Nxb2 {[%clk 0:01:15]} 30. Rxc6 {[%clk 0:01:19]}  Nc4 {[%clk 0:01:15]} 31. Kh2 {[%clk 0:01:09]}  Nd2 {[%clk 0:01:14]} 32. Bd3 {[%clk 0:00:59]}  Rb3 {[%clk 0:01:09]} 33. Bc2 {[%clk 0:00:58]}  Rb7 {[%clk 0:00:56]} 34. Bd3 {[%clk 0:00:56]}  Rb3 {[%clk 0:00:26]} 35. Bc2 {[%clk 0:00:55]}  Ra3 {[%clk 0:00:26]} 36. Rc7 {[%clk 0:00:49]}  Nf1+ {[%clk 0:00:26]} 37. Kg1 {[%clk 0:00:46]}  Nxe3 {[%clk 0:00:27]} 38. Bxe3 {[%clk 0:00:47]}  Rxe3 {[%clk 0:00:26]} 39. Rxf7 {[%clk 0:00:48]}  Rc3 {[%clk 0:00:26]} 40. Ba4 {[%clk 0:00:43]}  Rc4 {[%clk 0:00:25]} 41. Bb3 {[%clk 0:00:35]}  Rxf4 {[%clk 0:00:24]} 42. Re7 {[%clk 0:00:36]}  Re4 {[%clk 0:00:23]} 43. Bc2 {[%clk 0:00:34]}  Re3 {[%clk 0:00:23]} 44. Kf2 {[%clk 0:00:30]}  d4 {[%clk 0:00:23]} 45. Ba4 {[%clk 0:00:25]}  Ne4+ {[%clk 0:00:20]} 46. Kf1 {[%clk 0:00:21]}  d3 {[%clk 0:00:20]} 47. Rd7 {[%clk 0:00:16]}  d2 {[%clk 0:00:20]} 48. Kg1 {[%clk 0:00:13]}  Nc3 {[%clk 0:00:14]} 49. Bc2 {[%clk 0:00:12]}  Re1+ {[%clk 0:00:14]} 50. Kf2 {[%clk 0:00:13]}  d1=Q {[%clk 0:00:15]} 51. Bxd1 {[%clk 0:00:13]}  Rxd1 {[%clk 0:00:16]} 52. Re7 {[%clk 0:00:13]}  Rd6 {[%clk 0:00:15]} 53. Ke3 {[%clk 0:00:13]}  Nd5+ {[%clk 0:00:15]} 0-1


[Site "https://www.chess.com"]

[Event "Titled Tuesday Blitz February 07 Early 2023"]
[White "Fernandez Guillen, Ernesto J."]
[Black "Ladan, Nicholas"]
[WhiteFideId "3512428"]
[BlackFideId "30918855"]
[WhiteElo "2477"]
[BlackElo "2228"]
[Result "1/2-1/2"]
[Round "07"]
[TimeControl "180+2"]
[Date "2023.02.07"]
[WhiteClock "0:00:07"]
[BlackClock "0:00:08"]

1. e4 {[%clk 0:02:56]}  e5 {[%clk 0:02:59]} 2. Nf3 {[%clk 0:02:56]}  Nc6 {[%clk 0:03:00]} 3. d4 {[%clk 0:02:56]}  exd4 {[%clk 0:03:00]} 4. Bc4 {[%clk 0:02:57]}  Nf6 {[%clk 0:03:00]} 5. O-O {[%clk 0:02:58]}  Nxe4 {[%clk 0:02:59]} 6. Re1 {[%clk 0:02:58]}  d5 {[%clk 0:03:00]} 7. Bxd5 {[%clk 0:02:59]}  Qxd5 {[%clk 0:03:00]} 8. Nc3 {[%clk 0:03:00]}  Qd7 {[%clk 0:03:01]} 9. Nxe4 {[%clk 0:03:01]}  Be7 {[%clk 0:03:01]} 10. Bg5 {[%clk 0:03:02]}  O-O {[%clk 0:03:01]} 11. Bxe7 {[%clk 0:03:02]}  Qxe7 {[%clk 0:03:01]} 12. Nxd4 {[%clk 0:03:03]}  Nxd4 {[%clk 0:03:02]} 13. Qxd4 {[%clk 0:03:03]}  b6 {[%clk 0:03:01]} 14. Nc3 {[%clk 0:02:29]}  Be6 {[%clk 0:02:51]} 15. Qf4 {[%clk 0:02:29]}  Rad8 {[%clk 0:02:46]} 16. h3 {[%clk 0:02:28]}  Qd6 {[%clk 0:02:34]} 17. Qh4 {[%clk 0:02:24]}  Qd4 {[%clk 0:02:28]} 18. Re4 {[%clk 0:02:21]}  Qf6 {[%clk 0:02:04]} 19. Qxf6 {[%clk 0:02:20]}  gxf6 {[%clk 0:02:05]} 20. Re3 {[%clk 0:02:08]}  f5 {[%clk 0:01:55]} 21. Rc1 {[%clk 0:02:09]}  c6 {[%clk 0:01:54]} 22. Kf1 {[%clk 0:02:04]}  Rd4 {[%clk 0:01:53]} 23. Ke1 {[%clk 0:02:00]}  Rfd8 {[%clk 0:01:52]} 24. b3 {[%clk 0:01:59]}  a5 {[%clk 0:01:47]} 25. Rd1 {[%clk 0:01:58]}  Rxd1+ {[%clk 0:01:45]} 26. Nxd1 {[%clk 0:01:58]}  c5 {[%clk 0:01:43]} 27. c4 {[%clk 0:01:38]}  a4 {[%clk 0:01:41]} 28. Nc3 {[%clk 0:01:37]}  axb3 {[%clk 0:01:40]} 29. axb3 {[%clk 0:01:38]}  Ra8 {[%clk 0:01:41]} 30. Kd2 {[%clk 0:01:18]}  Ra1 {[%clk 0:01:40]} 31. Re1 {[%clk 0:01:15]}  Ra3 {[%clk 0:01:32]} 32. Kc2 {[%clk 0:01:15]}  Ra7 {[%clk 0:01:30]} 33. Kb2 {[%clk 0:01:11]}  Kg7 {[%clk 0:01:29]} 34. Rd1 {[%clk 0:01:11]}  Kf6 {[%clk 0:01:25]} 35. Rd6 {[%clk 0:01:09]}  Rd7 {[%clk 0:01:21]} 36. Rxd7 {[%clk 0:00:38]}  Bxd7 {[%clk 0:01:15]} 37. Nd5+ {[%clk 0:00:38]}  Ke5 {[%clk 0:01:15]} 38. Nxb6 {[%clk 0:00:39]}  Bc6 {[%clk 0:01:15]} 39. g3 {[%clk 0:00:40]}  Ke4 {[%clk 0:01:08]} 40. Na4 {[%clk 0:00:36]}  Kf3 {[%clk 0:01:07]} 41. Nxc5 {[%clk 0:00:35]}  Kxf2 {[%clk 0:01:08]} 42. b4 {[%clk 0:00:22]}  Kxg3 {[%clk 0:01:06]} 43. b5 {[%clk 0:00:23]}  Ba8 {[%clk 0:00:51]} 44. Kc3 {[%clk 0:00:22]}  f4 {[%clk 0:00:49]} 45. Nd3 {[%clk 0:00:21]}  f3 {[%clk 0:00:47]} 46. c5 {[%clk 0:00:21]}  Be4 {[%clk 0:00:36]} 47. b6 {[%clk 0:00:12]}  f2 {[%clk 0:00:30]} 48. Nxf2 {[%clk 0:00:12]}  Kxf2 {[%clk 0:00:30]} 49. Kd4 {[%clk 0:00:13]}  f5 {[%clk 0:00:27]} 50. Ke5 {[%clk 0:00:13]}  Ke3 {[%clk 0:00:22]} 51. Kd6 {[%clk 0:00:12]}  f4 {[%clk 0:00:21]} 52. c6 {[%clk 0:00:12]}  f3 {[%clk 0:00:22]} 53. b7 {[%clk 0:00:11]}  f2 {[%clk 0:00:22]} 54. b8=Q {[%clk 0:00:11]}  f1=Q {[%clk 0:00:21]} 55. Qa7+ {[%clk 0:00:11]}  Kd2 {[%clk 0:00:18]} 56. Qa2+ {[%clk 0:00:09]}  Bc2 {[%clk 0:00:17]} 57. Qa5+ {[%clk 0:00:09]}  Ke3 {[%clk 0:00:13]} 58. Qc5+ {[%clk 0:00:09]}  Kd2 {[%clk 0:00:12]} 59. c7 {[%clk 0:00:09]}  Qf6+ {[%clk 0:00:12]} 60. Kd5 {[%clk 0:00:07]}  Bb3+ {[%clk 0:00:08]} 61. Ke4 {[%clk 0:00:07]}  Qe6+ {[%clk 0:00:06]} 62. Kf4 {[%clk 0:00:06]}  Qf6+ {[%clk 0:00:05]} 63. Qf5 {[%clk 0:00:04]}  Qd4+ {[%clk 0:00:04]} 64. Qe4 {[%clk 0:00:04]}  Qxe4+ {[%clk 0:00:04]} 65. Kxe4 {[%clk 0:00:04]}  Be6 {[%clk 0:00:05]} 66. h4 {[%clk 0:00:04]}  h5 {[%clk 0:00:05]} 67. Ke5 {[%clk 0:00:04]}  Bg4 {[%clk 0:00:06]} 68. Kf6 {[%clk 0:00:04]}  Ke3 {[%clk 0:00:06]} 69. Kg5 {[%clk 0:00:05]}  Kf3 {[%clk 0:00:07]} 70. c8=Q {[%clk 0:00:05]}  Bxc8 {[%clk 0:00:07]} 71. Kxh5 {[%clk 0:00:06]}  Bg4+ {[%clk 0:00:07]} 72. Kg5 {[%clk 0:00:06]}  Kg3 {[%clk 0:00:08]} 73. h5 {[%clk 0:00:07]}  Bxh5 {[%clk 0:00:08]} 1/2-1/2


[Site "https://www.chess.com"]

[Event "Titled Tuesday Blitz February 07 Early 2023"]
[White "Kumala, Aleksander"]
[Black "Shipov, Sergei"]
[WhiteFideId "1141880"]
[BlackFideId "4113624"]
[WhiteElo "2165"]
[BlackElo "2541"]
[Result "0-1"]
[Round "07"]
[TimeControl "180+2"]
[Date "2023.02.07"]
[WhiteClock "0:00:45"]
[BlackClock "0:00:59"]

1. d4 {[%clk 0:03:00]}  d5 {[%clk 0:02:59]} 2. Bg5 {[%clk 0:02:58]}  h6 {[%clk 0:02:58]} 3. Bh4 {[%clk 0:02:58]}  c6 {[%clk 0:02:58]} 4. e3 {[%clk 0:02:58]}  Qb6 {[%clk 0:02:59]} 5. Nd2 {[%clk 0:02:53]}  Bf5 {[%clk 0:02:52]} 6. Bd3 {[%clk 0:02:44]}  e6 {[%clk 0:02:49]} 7. Bxf5 {[%clk 0:02:38]}  exf5 {[%clk 0:02:49]} 8. Ngf3 {[%clk 0:02:37]}  Nd7 {[%clk 0:02:47]} 9. O-O {[%clk 0:02:35]}  Ngf6 {[%clk 0:02:47]} 10. c4 {[%clk 0:02:29]}  Be7 {[%clk 0:02:44]} 11. cxd5 {[%clk 0:02:26]}  Nxd5 {[%clk 0:02:44]} 12. Bxe7 {[%clk 0:02:26]}  Nxe7 {[%clk 0:02:43]} 13. Nc4 {[%clk 0:02:24]}  Qc7 {[%clk 0:02:36]} 14. Nfe5 {[%clk 0:02:22]}  O-O {[%clk 0:02:35]} 15. Qh5 {[%clk 0:02:00]}  Nf6 {[%clk 0:02:32]} 16. Qh4 {[%clk 0:01:56]}  Rad8 {[%clk 0:02:29]} 17. b4 {[%clk 0:01:50]}  Ned5 {[%clk 0:02:21]} 18. a3 {[%clk 0:01:47]}  f4 {[%clk 0:02:16]} 19. Rac1 {[%clk 0:01:41]}  Rfe8 {[%clk 0:02:02]} 20. exf4 {[%clk 0:01:33]}  Ne7 {[%clk 0:02:02]} 21. Rfd1 {[%clk 0:01:26]}  Nf5 {[%clk 0:02:02]} 22. Qh3 {[%clk 0:01:21]}  Nxd4 {[%clk 0:02:03]} 23. Qe3 {[%clk 0:01:14]}  Ng4 {[%clk 0:01:14]} 24. Qg3 {[%clk 0:00:58]}  Ne2+ {[%clk 0:01:13]} 25. Kf1 {[%clk 0:00:55]}  Nxg3+ {[%clk 0:01:13]} 26. hxg3 {[%clk 0:00:55]}  Rxd1+ {[%clk 0:01:11]} 27. Rxd1 {[%clk 0:00:55]}  Nf6 {[%clk 0:01:08]} 28. Nd6 {[%clk 0:00:54]}  Rd8 {[%clk 0:01:08]} 29. Nexf7 {[%clk 0:00:49]}  Qxf7 {[%clk 0:01:08]} 30. Nxf7 {[%clk 0:00:50]}  Rxd1+ {[%clk 0:01:08]} 31. Ke2 {[%clk 0:00:50]}  Ra1 {[%clk 0:01:07]} 32. Ne5 {[%clk 0:00:51]}  Ra2+ {[%clk 0:01:07]} 33. Ke3 {[%clk 0:00:50]}  Rxa3+ {[%clk 0:01:08]} 34. Ke2 {[%clk 0:00:50]}  Ra2+ {[%clk 0:01:08]} 35. Ke3 {[%clk 0:00:50]}  Nd5+ {[%clk 0:01:08]} 36. Ke4 {[%clk 0:00:50]}  Nxb4 {[%clk 0:01:08]} 37. g4 {[%clk 0:00:49]}  Rxf2 {[%clk 0:01:08]} 38. g3 {[%clk 0:00:49]}  a5 {[%clk 0:01:07]} 39. Kf5 {[%clk 0:00:49]}  a4 {[%clk 0:01:06]} 40. Kg6 {[%clk 0:00:50]}  a3 {[%clk 0:01:06]} 41. f5 {[%clk 0:00:50]}  a2 {[%clk 0:01:06]} 42. g5 {[%clk 0:00:50]}  hxg5 {[%clk 0:01:04]} 43. g4 {[%clk 0:00:49]}  a1=Q {[%clk 0:01:04]} 44. Nd7 {[%clk 0:00:49]}  Nd5 {[%clk 0:01:02]} 45. f6 {[%clk 0:00:48]}  Rxf6+ {[%clk 0:01:01]} 46. Kh5 {[%clk 0:00:46]}  Qh1+ {[%clk 0:01:00]} 47. Kxg5 {[%clk 0:00:45]}  Qh6# {[%clk 0:00:59]} 0-1


[Site "https://www.chess.com"]